bitfinex-derivatives/quotes_ETHF0:USTF0_20251118
["timestamp","ask_amount","ask_price","bid_price","bid_amount"]
[1763508877716,3.72682,3122.9,3122.8,0.75964]
[1763508878818,3.72682,3122.9,3122.8,0.2406]
[1763508879007,0.51907,3122.7,3122.6,0.2406]
[1763508879814,0.51907,3122.7,3122.6,0.75967]
[1763508880911,3.2078,3122.9,3122.5,0.1454]
[1763508880912,0.51907,3122.6,3122.5,0.1454]
[1763508881215,0.51907,3122.6,3122.5,0.386]
[1763508881615,0.51907,3122.6,3122.5,0.90509]
[1763508882417,0.51907,3122.6,3122.5,0.386]
[1763508884022,0.51907,3122.6,3122.5,0.90509]
[1763508884220,0.51907,3122.6,3122.5,0.386]
[1763508885227,0.51907,3122.6,3122.5,0.90509]
[1763508885526,0.51907,3122.6,3122.5,0.386]
[1763508885926,0.51907,3122.6,3122.5,0.1454]
[1763508886229,0.51907,3122.6,3122.5,0.386]
[1763508887826,0.51907,3122.6,3122.5,0.1454]
[1763508890034,3.2078,3122.9,3122.8,0.2406]
[1763508891730,3.72682,3122.9,3122.8,0.75964]
[1763508892130,3.72682,3122.9,3122.8,0.2406]
[1763508892732,0.51907,3122.6,3122.5,0.1454]
[1763508893335,0.51907,3122.6,3122.5,0.386]
[1763508894036,0.51907,3122.6,3122.5,0.1454]
[1763508894529,0.51905,3122.8,3122.5,0.386]
[1763508894725,0.51907,3122.6,3122.5,0.90509]
[1763508895133,0.51907,3122.6,3122.5,0.386]
[1763508895328,0.51907,3122.6,3122.5,0.1454]
[1763508899341,0.51907,3122.6,3122.5,0.386]
[1763508901442,0.51907,3122.6,3122.5,0.1454]
[1763508903441,0.51914,3122.2,3122.1,1.72100085]
[1763508903648,1.84120737,3122.6,3122.0,0.15020985]
[1763508903649,0.51915,3122.1,3122.0,0.15020985]
[1763508904344,0.51915,3122.1,3122.0,0.38950985]
[1763508904945,0.51915,3122.1,3122.0,0.15020985]
[1763508905447,0.51915,3122.1,3122.0,0.38950985]
[1763508906555,0.51915,3122.1,3122.0,0.15020985]
[1763508909644,0.51915,3122.1,3122.0,0.38950985]
[1763508910449,0.51915,3122.1,3122.0,0.15020985]
[1763508911148,0.51915,3122.1,3122.0,0.90867985]
[1763508911350,0.51915,3122.1,3122.0,0.38950985]
[1763508914254,0.51915,3122.1,3122.0,0.15020985]
[1763508916145,0.51915,3122.1,3122.0,0.38950985]
[1763508917350,0.51915,3122.1,3122.0,0.15020985]
[1763508921247,0.51915,3122.1,3122.0,0.38950985]
[1763508922854,3.2078,3122.4,3122.3,0.2316]
[1763508923056,3.7269,3122.4,3122.3,0.2316]
[1763508923855,0.51915,3122.1,3122.0,1.8712107]
[1763508924156,0.51915,3122.1,3122.0,0.15020985]
[1763508924358,0.51915,3122.1,3122.0,0.38180985]
[1763508925254,0.51915,3122.1,3122.0,2.1028107]
[1763508925460,0.51915,3122.1,3122.0,0.38180985]
[1763508927249,0.51915,3122.1,3122.0,2.1028107]
[1763508930161,0.51915,3122.1,3122.0,2.6219807]
[1763508930662,3.7269,3122.4,3122.3,0.2316]
[1763508930859,3.34226739,3122.4,3122.3,0.2316]
[1763508931765,0.51912,3122.3,3122.2,1.72825622]
[1763508934863,0.51912,3122.3,3122.2,1.95835622]
[1763508938869,0.51912,3122.3,3122.2,1.72825622]
[1763508939168,0.51912,3122.3,3122.2,1.95835622]
[1763508939371,3.72692,3122.4,3122.3,0.2301]
[1763508939670,3.72692,3122.4,3122.3,1.95835622]
[1763508940866,3.34229307,3122.4,3122.3,1.95835622]
[1763508943275,3.34229307,3122.4,3122.3,0.2301]
[1763508947176,0.51912,3122.3,3122.2,1.72825622]
[1763508947971,0.51912,3122.3,3122.2,1.95835622]
[1763508948677,0.51912,3122.3,3122.2,2.47749622]
[1763508949280,0.51912,3122.3,3122.2,0.74924]
[1763508953574,0.8825,3122.6,3122.5,0.3703]
[1763508953979,0.51904,3122.8,3122.7,0.74914]
[1763508954473,0.51904,3122.8,3122.7,0.2301]
[1763508954676,0.51905,3122.7,3122.6,1.72943867]
[1763508954975,3.2078,3122.9,3122.6,1.95953867]
[1763508955180,0.51905,3122.7,3122.6,1.95953867]
[1763508955573,0.51905,3122.7,3122.6,2.47860867]
[1763508956078,0.51905,3122.7,3122.6,1.95953867]
[1763508956769,0.51905,3122.7,3122.6,2.47860867]
[1763508958276,0.51905,3122.7,3122.6,0.74917]
[1763508960281,0.51907,3122.6,3122.5,0.1402]
[1763508961286,0.51907,3122.6,3122.5,0.3678]
[1763508962078,0.90925545,3122.9,3122.8,0.2276]
[1763508962284,0.247,3123.7,3122.8,2.25849996]
[1763508962480,0.76589,3123.7,3123.6,3.2078]
[1763508962679,0.76597,3123.2,3123.1,1.72657822]
[1763508962883,0.76599,3123.1,3123.0,1.72657822]
[1763508963177,0.1463,3123.0,3122.7,2.8137078]
[1763508963476,0.247,3123.0,3122.9,0.2276]
[1763508963672,0.51897,3123.2,3123.1,0.2276]
[1763508964078,0.1463,3123.5,3123.2,0.51896]
[1763508964274,0.91222,3123.5,3123.4,0.2276]
[1763508964475,0.76595,3123.3,3123.2,0.2276]
[1763508964880,0.38143769,3123.3,3123.2,0.2276]
[1763508965080,0.62843769,3123.3,3123.2,0.2276]
[1763508965274,0.62843769,3123.3,3123.2,0.74657]
[1763508966084,0.38143769,3123.3,3123.2,0.74657]
[1763508966274,0.51893,3123.5,3123.3,0.51895]
[1763508966480,0.51891,3123.6,3123.5,0.3661]
[1763508966978,0.76591,3123.6,3123.5,0.3661]
[1763508967777,0.76594,3123.4,3123.3,0.2276]
[1763508968985,0.76594,3123.4,3123.3,0.74655]
[1763508969574,0.76594,3123.4,3123.3,0.2276]
[1763508969780,0.76594,3123.4,3123.3,0.74655]
[1763508970686,0.51892,3123.6,3123.5,0.88502]
[1763508970890,0.51892,3123.6,3123.5,1.98804261]
[1763508971192,0.76592,3123.6,3123.5,1.46912261]
[1763508971792,0.76592,3123.6,3123.5,1.33062261]
[1763508973793,0.76592,3123.6,3123.5,1.10302261]
[1763508974191,0.76592,3123.6,3123.5,1.98804261]
[1763508974395,0.51892,3123.6,3123.5,1.98804261]
[1763508974888,0.247,3124.0,3123.9,0.2276]
[1763508975095,0.247,3124.0,3123.9,0.23003655]
[1763508975294,0.51884,3124.0,3123.9,0.23003655]
[1763508975696,0.76584,3124.0,3123.9,0.23003655]
[1763508976092,0.91214,3124.0,3123.9,0.00243655]
[1763508978499,0.76584,3124.0,3123.9,0.23003655]
[1763508978704,0.91214,3124.0,3123.9,0.00243655]
[1763508991517,1.63874951,3124.0,3123.9,0.00243655]
[1763508993913,4.84654951,3124.0,3123.9,0.00243655]
[1763508995816,0.76129,3123.7,3123.6,0.91938579]
[1763508996020,0.2424,3122.8,3122.6,5.16262968]
[1763508996215,0.2424,3122.8,3122.5,3.2078]
[1763508996216,0.76147,3122.6,3122.5,3.2078]
[1763508996517,0.76147,3122.6,3122.5,3.4364]
[1763508996916,0.76373936,3122.6,3122.5,3.43883313]
[1763508999216,0.76373936,3122.6,3122.5,0.00243313]
[1763508999620,0.76152,3122.3,3122.2,0.00480207]
[1763508999819,1.86454261,3122.3,3122.2,0.00480207]
[1763509000722,1.86454261,3122.3,3122.2,0.00890252]
[1763509001816,0.76152,3122.3,3122.2,0.00890252]
[1763509002021,0.76152,3122.3,3122.2,0.23750252]
[1763509003228,0.76152,3122.3,3122.2,0.00890252]
[1763509003634,0.76152,3122.3,3122.2,0.23750252]
[1763509005727,0.51912,3122.3,3122.2,0.23750252]
[1763509006131,0.51912,3122.3,3122.2,0.75664252]
[1763509007532,0.5191,3122.4,3122.3,0.51912]
[1763509007827,0.00226936,3122.6,3122.5,0.3729]
[1763509008031,0.00226936,3122.6,3122.5,1.47592261]
[1763509008835,0.76373936,3122.6,3122.5,1.47592261]
[1763509009026,0.76373936,3122.6,3122.5,1.99501261]
[1763509010338,0.76373936,3122.6,3122.5,0.89199]
[1763509011033,0.52133936,3122.6,3122.5,0.89199]
[1763509011839,0.76373936,3122.6,3122.5,0.3729]
[1763509012030,0.76373936,3122.6,3122.5,0.74769]
[1763509012231,0.00226936,3122.6,3122.5,0.89199]
[1763509012441,0.52133936,3122.6,3122.5,4.09979]
[1763509013029,0.76373936,3122.6,3122.5,4.09979]
[1763509013441,0.76373936,3122.6,3122.5,3.5807]
[1763509013635,0.76373936,3122.6,3122.5,3.4364]
[1763509013835,0.76373936,3122.6,3122.5,3.2078]
[1763509014143,0.76152,3122.3,3122.2,0.00890252]
[1763509014838,0.66009076,3122.3,3122.2,0.00890252]
[1763509021739,3.86789076,3122.3,3122.2,0.00890252]
[1763509022246,4.58275227,3122.3,3122.2,0.00890252]
[1763509025648,4.58275227,3122.3,3122.2,0.24220252]
[1763509026445,4.58275227,3122.3,3122.2,0.00890252]
[1763509027540,4.34035227,3122.3,3122.2,0.24220252]
[1763509027744,1.13255227,3122.3,3122.2,0.24220252]
[1763509028145,0.41769076,3122.3,3122.2,0.24220252]
[1763509028745,0.41769076,3122.3,3122.2,0.76134252]
[1763509028946,0.5191,3122.5,3122.4,0.7524]
[1763509029351,1.23580883,3122.5,3122.4,0.7524]
[1763509029953,0.00226936,3122.6,3122.5,0.89519]
[1763509030347,0.23786936,3122.6,3122.5,0.75239]
[1763509030756,0.75694936,3122.6,3122.5,0.75239]
[1763509031353,0.75694936,3122.6,3122.5,0.2333]
[1763509032259,0.75694936,3122.6,3122.5,0.3761]
[1763509033852,0.75694936,3122.6,3122.5,0.89519]
[1763509034154,0.00226936,3122.6,3122.5,0.89519]
[1763509036558,0.00226936,3122.6,3122.5,2.61556226]
[1763509038265,0.00226936,3122.6,3122.5,0.89519]
[1763509041176,0.23786936,3122.6,3122.5,0.51909]
[1763509041377,0.00226936,3122.6,3122.5,0.89519]
[1763509043570,0.00226936,3122.6,3122.5,2.61556226]
[1763509046277,0.00226936,3122.6,3122.5,0.89519]
[1763509047581,0.76113936,3122.6,3122.5,0.51909]
[1763509048267,0.76113936,3122.6,3122.5,0.76499]
[1763509050282,0.00226936,3122.6,3122.5,0.90409]
[1763509053086,0.00226936,3122.6,3122.5,2.62446226]
[1763509053288,3.1479,3123.5,3123.4,0.2459]
[1763509053289,0.75502,3123.5,3123.4,0.2459]
[1763509053483,0.51892,3123.5,3123.4,0.2459]
[1763509053683,0.75507,3123.2,3123.1,3.4537]
[1763509053889,0.75507,3123.2,3123.1,3.97269]
[1763509054188,0.51896,3123.3,3123.2,0.76484]
[1763509054388,0.75766032,3123.3,3123.2,0.76484]
[1763509055188,0.00260032,3123.3,3123.2,0.76484]
[1763509055688,0.52155032,3123.3,3123.2,0.76484]
[1763509059292,0.00260032,3123.3,3123.2,0.76484]
[1763509060295,0.52155032,3123.3,3123.2,0.76484]
[1763509061488,0.00260032,3123.3,3123.2,0.76484]
[1763509062186,0.00260032,3123.3,3123.1,6.06060405]
[1763509062187,0.75507,3123.2,3123.1,3.4537]
[1763509062380,0.75766032,3123.3,3123.2,0.76487]
[1763509062586,0.00260032,3123.3,3123.2,0.76487]
[1763509063186,0.52155032,3123.3,3123.2,0.76487]
[1763509063391,0.00260032,3123.3,3123.2,0.76487]
[1763509063888,0.23870032,3123.3,3123.2,0.76487]
[1763509066297,0.00260032,3123.3,3123.2,0.76487]
[1763509067787,0.52155032,3123.3,3123.2,0.76487]
[1763509068086,0.75765032,3123.3,3123.2,0.76487]
[1763509069698,0.23870032,3123.3,3123.2,0.76487]
[1763509070300,0.75765032,3123.3,3123.2,0.76487]
[1763509072195,0.00260032,3123.3,3123.2,0.76487]
[1763509075601,0.00260032,3123.3,3123.2,2.48872353]
[1763509075803,0.00260032,3123.3,3123.2,0.76487]
[1763509076202,0.00260032,3123.3,3123.2,2.48872353]
[1763509077108,0.75765032,3123.3,3123.2,2.48872353]
[1763509077311,0.75765032,3123.3,3123.2,0.76487]
[1763509077509,0.75507,3123.2,3123.1,4.93165353]
[1763509077807,0.75507,3123.2,3123.1,3.2078]
[1763509078007,0.75507,3123.2,3123.1,3.72679]
[1763509078210,0.75507,3123.2,3123.1,3.97209]
[1763509078506,0.51897,3123.2,3123.1,3.97209]
[1763509078708,0.00260032,3123.3,3123.2,0.76427]
[1763509078709,0.52156032,3123.3,3123.2,0.76427]
[1763509082205,0.00260032,3123.3,3123.2,2.48812353]
[1763509082805,0.00260032,3123.3,3123.2,0.76427]
[1763509083516,3.2078,3124.0,3123.9,0.2453]
[1763509083808,3.92636577,3124.0,3123.9,0.2453]
[1763509084912,4.44494501,3124.0,3123.9,0.76415]
[1763509085513,0.71830501,3124.0,3123.9,1.89310052]
[1763509085812,0.51882,3124.2,3124.1,0.2453]
[1763509086012,1.23696471,3124.2,3124.1,0.2453]
[1763509086311,0.74914,3124.0,3123.9,0.76415]
[1763509087006,0.74912,3124.2,3124.1,0.76412]
[1763509087205,1.46704734,3124.2,3124.1,0.76412]
[1763509087913,1.46704734,3124.2,3124.1,0.2453]
[1763509088211,1.46704734,3124.2,3124.1,0.76412]
[1763509089614,1.46704734,3124.2,3124.1,0.2453]
[1763509089910,1.46704734,3124.2,3124.1,0.76412]
[1763509090616,0.74912,3124.2,3124.1,0.76412]
[1763509090810,1.46651306,3124.2,3124.1,0.76412]
[1763509091114,0.74912,3124.1,3124.0,0.51883]
[1763509092905,0.65455,3124.0,3123.9,0.51885]
[1763509093110,0.65455,3124.0,3123.8,0.00480207]
[1763509093111,0.74929,3123.1,3123.0,2.24304163]
[1763509093312,0.2303,3123.1,3123.0,1.86719186]
[1763509093510,3.3435,3124.0,3123.3,0.2453]
[1763509093708,0.51894,3123.5,3123.4,5.07491186]
[1763509093909,0.74924,3123.5,3123.4,4.55599186]
[1763509094116,0.51897,3123.3,3123.2,0.51897]
[1763509094415,0.74927,3123.2,3123.1,1.10769393]
[1763509094616,0.74927,3123.2,3123.1,1.87198393]
[1763509094816,0.2303,3123.2,3123.1,1.87198393]
[1763509095005,0.51897,3123.3,3123.2,0.76427]
[1763509095811,0.51894,3123.5,3123.4,0.51892]
[1763509096110,0.51894,3123.5,3123.4,0.76422]
[1763509096313,3.2078,3123.6,3123.4,0.76422]
[1763509096511,0.2303,3123.6,3123.5,0.91082]
[1763509096716,0.2303,3123.6,3123.5,0.51892]
[1763509097217,0.2303,3123.6,3123.5,0.76422]
[1763509097714,0.7492,3123.6,3123.5,0.76422]
[1763509098914,0.5189,3123.6,3123.5,0.91082]
[1763509099216,0.75398207,3123.8,3123.7,0.76419]
[1763509099412,0.00480207,3123.8,3123.7,0.76419]
[1763509099809,0.75397207,3123.8,3123.7,0.76419]
[1763509101217,0.3785,3123.5,3123.4,3.4438]
[1763509101914,0.75809,3123.7,3123.6,0.75489]
[1763509102315,0.75809,3123.7,3123.6,0.236]
[1763509102520,0.89742,3123.5,3123.4,3.2078]
[1763509103221,0.89742,3123.5,3123.4,3.4438]
[1763509103523,0.89742,3123.5,3123.4,3.2078]
[1763509104422,0.75815,3123.3,3123.2,0.51897]
[1763509105529,0.75815,3123.3,3123.2,0.75497]
[1763509106121,0.75815,3123.3,3123.2,0.236]
[1763509106327,0.75817,3123.2,3123.1,0.24080207]
[1763509106531,0.75817,3123.2,3123.1,0.00480207]
[1763509107425,0.1393,3123.5,3123.1,0.24080207]
[1763509107615,0.76677,3123.3,3123.2,0.75986]
[1763509109521,0.76673,3123.5,3123.4,0.75984]
[1763509110124,0.76673,3123.5,3123.4,0.2409]
[1763509110320,0.2478,3123.2,3123.1,0.24570207]
[1763509111829,0.76677,3123.2,3123.1,0.76469207]
[1763509112717,0.1363,3123.5,3123.3,0.51894]
[1763509112923,0.2478,3123.5,3123.4,0.2409]
[1763509113226,0.2478,3123.3,3123.2,1.34379186]
[1763509113427,0.76677,3123.2,3123.1,0.00480207]
[1763509114726,0.76677,3123.2,3123.1,0.76469207]
[1763509114922,0.76677,3123.2,3123.1,0.24570207]
[1763509115123,0.76677,3123.2,3123.1,0.00480207]
[1763509115523,0.76677,3123.2,3123.1,0.52379207]
[1763509115827,0.76673,3123.5,3123.4,0.2409]
[1763509116129,0.76675,3123.3,3123.2,0.51897]
[1763509116530,0.76677,3123.2,3123.1,0.00480207]
[1763509116835,0.7669,3122.4,3122.3,2.48528008]
[1763509118130,0.7669,3122.4,3122.3,1.96616008]
[1763509118336,0.76692,3122.3,3122.2,3.21190045]
[1763509119130,0.76692,3122.3,3122.2,3.73104045]
[1763509119425,0.2478,3122.5,3122.4,0.76]
[1763509119629,0.90319,3122.5,3122.4,0.2409]
[1763509119831,0.76692,3122.3,3122.2,3.21190045]
[1763509120035,0.76692,3122.3,3122.2,3.73104045]
[1763509120232,0.76692,3122.3,3122.2,3.21190045]
[1763509121536,0.76692,3122.3,3122.2,3.45280045]
[1763509122031,0.76692,3122.3,3122.2,3.21190045]
[1763509122937,0.76692,3122.3,3122.2,3.45280045]
[1763509123639,0.51912,3122.3,3122.2,5.07483231]
[1763509126141,0.5191,3122.5,3122.4,0.51907]
[1763509126344,0.5191,3122.5,3122.4,0.75997]
[1763509127344,0.5191,3122.5,3122.4,0.2409]
[1763509127743,0.7669,3122.5,3122.4,0.2409]
[1763509129443,0.7669,3122.5,3122.4,0.76]
[1763509129642,0.9032,3122.5,3122.4,0.2409]
[1763509129946,0.76692,3122.3,3122.2,3.97193045]
[1763509131247,0.76692,3122.3,3122.2,3.45280045]
[1763509131934,0.76692,3122.3,3122.2,3.97194045]
[1763509133050,0.51911,3122.4,3122.3,0.76002]
[1763509133348,0.51911,3122.4,3122.3,1.86291186]
[1763509134638,0.76691,3122.4,3122.3,1.86291186]
[1763509136444,0.76689,3122.5,3122.4,0.75999]
[1763509138147,0.76689,3122.5,3122.4,0.2409]
[1763509139749,0.76689,3122.5,3122.4,0.76]
[1763509139945,3.2078,3122.8,3122.7,0.2253]
[1763509140250,3.72684,3122.8,3122.7,0.2253]
[1763509140449,3.97244,3122.8,3122.7,0.2253]
[1763509140651,3.97244,3122.8,3122.7,0.74435]
[1763509140844,0.51904,3122.8,3122.7,0.74435]
[1763509141245,0.51895,3123.3,3123.2,0.51894]
[1763509141447,0.51895,3123.3,3123.2,0.74424]
[1763509143854,0.76455,3123.3,3123.2,0.74424]
[1763509144653,3.72669,3123.7,3123.6,0.2253]
[1763509144856,0.76449,3123.7,3123.6,1.32819186]
[1763509145052,0.00480207,3123.8,3123.7,0.74419]
[1763509145249,0.00480207,3123.8,3123.7,3.95199]
[1763509145453,0.2456,3123.8,3123.7,3.2078]
[1763509145654,0.2456,3123.6,3123.5,0.2253]
[1763509145855,3.4534,3123.8,3123.7,0.2253]
[1763509146055,0.51887,3123.8,3123.7,0.2253]
[1763509146449,0.2456,3123.4,3123.3,0.2253]
[1763509146649,0.76455,3123.4,3123.3,0.74425]
[1763509146856,0.76455,3123.4,3123.3,0.2253]
[1763509147253,0.76455,3123.4,3123.3,0.74425]
[1763509147958,0.2456,3123.1,3123.0,0.2253]
[1763509148158,0.2456,3123.3,3123.2,0.2253]
[1763509148559,0.76456,3123.3,3123.2,0.2253]
[1763509148962,0.76456,3123.3,3123.2,0.74427]
[1763509149559,0.76456,3123.3,3123.2,0.2253]
[1763509149763,0.76456,3123.3,3123.2,0.74427]
[1763509150561,0.2456,3123.5,3123.4,0.74424]
[1763509150755,3.2078,3123.8,3123.5,0.88571]
[1763509150756,0.51891,3123.6,3123.5,0.88571]
[1763509150956,0.76451,3123.6,3123.5,0.88571]
[1763509151355,0.76451,3123.6,3123.5,0.3668]
[1763509151562,0.76451,3123.6,3123.5,0.2253]
[1763509151762,0.76454,3123.4,3123.3,0.51895]
[1763509152260,0.76454,3123.4,3123.3,0.74425]
[1763509153061,0.51894,3123.4,3123.3,0.74425]
[1763509153257,0.76454,3123.4,3123.3,0.2253]
[1763509153462,0.76458,3123.2,3123.1,0.2253]
[1763509154064,0.76459,3123.1,3123.0,0.51899]
[1763509154459,0.7646,3123.0,3122.9,3.95212]
[1763509154858,0.519,3123.0,3122.9,3.95212]
[1763509155052,0.76459,3123.1,3123.0,0.74428]
[1763509156564,0.76453,3123.5,3123.4,0.2253]
[1763509156765,0.76453,3123.5,3123.4,0.74424]
[1763509158067,0.76453,3123.5,3123.4,0.2253]
[1763509158763,0.76453,3123.5,3123.4,0.74424]
[1763509159066,0.90053,3123.5,3123.4,0.51894]
[1763509159268,0.90053,3123.5,3123.4,0.74424]
[1763509160769,0.90053,3123.5,3123.4,0.51894]
[1763509160968,0.76457,3123.3,3123.2,0.74426]
[1763509161773,0.51897,3123.3,3123.2,0.74426]
[1763509162366,0.74977,3123.3,3123.2,0.74426]
[1763509163164,0.74979,3123.1,3123.0,0.2469]
[1763509163470,0.8883,3123.0,3122.9,3.2078]
[1763509163667,0.3693,3123.0,3122.9,3.72682]
[1763509163871,0.2308,3123.0,3122.9,3.97372]
[1763509165476,0.74979,3123.2,3123.1,0.76589]
[1763509165671,0.2308,3123.2,3123.1,0.76589]
[1763509167569,0.74977,3123.2,3123.1,0.76589]
[1763509168278,0.9510332,3123.2,3123.1,0.76589]
[1763509170675,0.9510332,3123.2,3123.1,0.51899]
[1763509170876,0.8949,3123.0,3122.7,1.72526008]
[1763509171080,0.74804,3122.8,3122.7,0.51905]
[1763509171277,1.46898879,3122.8,3122.7,0.76465]
[1763509172575,1.46898879,3122.8,3122.5,3.3493]
[1763509172576,0.229,3122.6,3122.5,3.3493]
[1763509172776,0.229,3122.6,3122.5,3.5949]
[1763509173487,0.229,3122.6,3122.5,4.11399]
[1763509173984,0.74804,3122.8,3122.7,0.76462]
[1763509174185,1.46841122,3122.8,3122.7,0.76462]
[1763509176286,0.94937122,3122.8,3122.7,0.76462]
[1763509176478,0.72037122,3122.8,3122.7,0.76462]
[1763509177279,3.4368,3123.0,3122.9,0.2456]
[1763509177583,0.7202081,3123.0,3122.9,0.76462]
[1763509177786,0.229,3123.3,3123.2,0.76457]
[1763509177980,0.9492557,3123.3,3123.2,0.76457]
[1763509178185,0.7202557,3123.3,3123.2,0.76457]
[1763509178485,1.46822852,3123.4,3123.3,0.76455]
[1763509178693,1.46823123,3123.4,3123.3,0.76455]
[1763509180192,0.51899,3123.2,3123.1,0.51899]
[1763509180393,0.74799,3123.2,3123.1,0.51899]
[1763509180689,0.74799,3123.2,3123.1,0.76459]
[1763509180884,0.74799,3123.2,3122.9,3.2078]
[1763509180885,0.519,3123.1,3122.9,3.2078]
[1763509181091,0.3759,3123.0,3122.9,3.2078]
[1763509181884,0.8949,3123.0,3122.9,3.72682]
[1763509182088,0.8949,3123.0,3122.9,3.97242]
[1763509185691,0.229,3123.0,3122.9,3.97242]
[1763509185892,0.74795,3123.4,3123.3,0.2456]
[1763509186098,1.46837966,3123.4,3123.3,0.2456]
[1763509186298,0.94942966,3123.4,3123.3,0.76454]
[1763509187897,0.72042966,3123.4,3123.3,0.76454]
[1763509188397,0.51892,3123.5,3123.4,0.76454]
[1763509188592,0.74792,3123.5,3123.4,0.76454]
[1763509188795,1.46848929,3123.5,3123.4,0.76454]
[1763509191301,1.23948929,3123.5,3123.4,3.97234]
[1763509192502,0.51888,3123.8,3123.7,0.76449]
[1763509192895,1.46837836,3123.8,3123.7,0.76449]
[1763509193601,0.7479,3123.6,3123.5,0.90692]
[1763509193798,1.46839836,3123.6,3123.5,0.51892]
[1763509194002,1.46839836,3123.6,3123.5,0.76452]
[1763509194199,1.46839836,3123.6,3123.5,0.51892]
[1763509195103,1.46839836,3123.6,3123.5,0.76452]
[1763509199201,1.46839836,3123.6,3123.5,0.51892]
[1763509200398,1.46839836,3123.6,3123.5,0.75452]
[1763509201705,1.46839836,3123.6,3123.5,0.2356]
[1763509202006,1.47449836,3123.6,3123.5,0.51892]
[1763509202304,1.47449836,3123.6,3123.5,0.75452]
[1763509202905,0.89662,3123.5,3123.4,3.72673]
[1763509203906,0.89662,3123.5,3123.4,3.96233]
[1763509204305,1.61704006,3123.5,3123.4,3.96233]
[1763509204704,0.2351,3123.5,3123.4,3.96233]
[1763509205008,0.75401,3123.6,3123.5,0.89392]
[1763509205208,1.47444865,3123.6,3123.5,0.89392]
[1763509205404,1.47443865,3123.6,3123.5,0.89392]
[1763509205603,0.95553865,3123.6,3123.5,0.89392]
[1763509206909,1.47443865,3123.6,3123.5,0.75452]
[1763509207908,1.47443865,3123.6,3123.5,0.89392]
[1763509208504,1.47443865,3123.6,3123.5,0.75452]
[1763509211611,1.47508822,3123.6,3123.5,0.75452]
[1763509212302,1.47508822,3123.6,3123.5,0.89392]
[1763509212710,0.72108822,3123.6,3123.5,2.02279283]
[1763509212904,3.2078,3124.0,3123.9,0.75445]
[1763509213212,3.9290818,3124.0,3123.9,1.85712726]
[1763509213610,4.1641818,3124.0,3123.9,0.75445]
[1763509214108,4.6830218,3124.0,3123.9,0.75445]
[1763509214306,4.1641818,3124.0,3123.9,0.75445]
[1763509214709,0.7212818,3124.0,3123.9,0.75445]
[1763509214910,0.52362207,3124.1,3124.0,0.89384]
[1763509215112,0.52362207,3124.1,3124.0,1.99651726]
[1763509215312,1.24485382,3124.1,3124.0,1.99651726]
[1763509216116,0.96113382,3124.1,3124.0,1.99651726]
[1763509216518,1.47995382,3124.1,3124.0,1.99651726]
[1763509217913,1.47995382,3124.1,3124.0,0.2356]
[1763509218119,0.2351,3123.7,3123.6,1.86197933]
[1763509219019,0.2351,3123.7,3123.6,0.00480207]
[1763509219020,1.47479824,3123.7,3123.6,0.00480207]
[1763509221815,0.72080824,3123.7,3123.6,1.86197933]
[1763509222320,0.51885,3123.9,3123.8,0.2343]
[1763509222513,0.51884,3124.0,3123.9,0.75315]
[1763509222709,0.51884,3124.0,3123.9,1.85582726]
[1763509222912,1.23974959,3124.0,3123.9,1.85582726]
[1763509224019,1.23974959,3124.0,3123.6,1.73006215]
[1763509224020,0.76439,3123.7,3123.6,0.00480207]
[1763509224218,1.48515944,3123.7,3123.6,0.00480207]
[1763509224719,0.7645,3123.0,3122.9,3.72681]
[1763509224925,0.7645,3123.0,3122.2,0.00410045]
[1763509224926,0.76454,3122.8,3122.7,0.51905]
[1763509225121,0.76454,3122.8,3122.7,0.75335]
[1763509225517,0.76454,3122.8,3122.7,0.2343]
[1763509225720,0.2455,3122.8,3122.7,0.75335]
[1763509225924,0.76452,3122.9,3122.8,0.75334]
[1763509226118,0.76452,3122.9,3122.8,0.2343]
[1763509226318,0.76452,3122.9,3122.8,0.75334]
[1763509227518,0.51898,3123.2,3123.1,0.23]
[1763509227925,0.74988,3123.2,3123.1,0.23]
[1763509228521,0.2309,3122.9,3122.8,0.23]
[1763509228720,0.2309,3123.1,3123.0,0.8855]
[1763509228930,0.51897,3123.2,3123.1,0.74899]
[1763509229232,1.23885109,3123.2,3123.1,0.74899]
[1763509229522,3.2078,3123.4,3123.3,0.74895]
[1763509230024,3.2078,3123.8,3123.7,0.51886]
[1763509230214,4.15866346,3123.8,3123.7,1.85153726]
[1763509230828,4.15866346,3123.8,3123.7,0.74886]
[1763509231221,4.67753346,3123.8,3123.7,0.23]
[1763509231720,3.92776346,3123.8,3123.4,0.2431]
[1763509231927,0.74747,3123.3,3123.2,0.2431]
[1763509232118,0.74747,3123.3,3123.2,0.76207]
[1763509234026,0.74747,3123.3,3123.2,0.2431]
[1763509234332,0.74747,3123.3,3123.2,0.76207]
[1763509236030,0.8832,3123.0,3122.9,3.2078]
[1763509236228,0.8832,3123.0,3122.9,3.96992]
[1763509236529,0.8832,3123.0,3122.9,3.4509]
[1763509236827,0.8832,3123.0,3122.9,3.96992]
[1763509238125,0.8832,3123.0,3122.9,3.4509]
[1763509238332,0.8832,3123.0,3122.9,3.2078]
[1763509239121,0.8832,3123.0,3122.9,3.4509]
[1763509241620,0.7475,3123.0,3122.9,3.96992]
[1763509241830,0.8832,3123.0,3122.9,3.4509]
[1763509242219,0.7475,3123.0,3122.9,3.96992]
[1763509243231,0.7475,3123.0,3122.9,3.4509]
[1763509243831,0.8832,3123.0,3122.9,3.2078]
[1763509244035,0.74757,3122.7,3122.6,0.76217]
[1763509244528,0.74757,3122.7,3122.6,0.2431]
[1763509245737,0.74757,3122.7,3122.6,0.76217]
[1763509246329,0.74757,3122.7,3122.6,0.2431]
[1763509249038,0.51907,3122.7,3122.6,0.2431]
[1763509249739,0.51907,3122.7,3122.6,0.76217]
[1763509250741,0.74757,3122.6,3122.5,3.72688]
[1763509251333,0.74757,3122.6,3122.5,3.2078]
[1763509253137,0.51909,3122.5,3122.4,0.00480207]